[Event "10th Cherry Blossom Classic 2023"]
[Site "Dulles"]
[Date "2023.05.29"]
[Round "8.1"]
[White "Antipov, Mikhail Al."]
[Black "Durarbayli, Vasif"]
[Result "1/2-1/2"]
[ECO "C54"]
[WhiteElo "2588"]
[BlackElo "2627"]
[Annotator "TA"]
[PlyCount "156"]
[EventDate "2023.05.24"]
[EventType "swiss"]
[EventCountry "USA"]
[SourceTitle "playchess.com"]
[Source "ChessBase"]
[SourceQuality "1"]
[TimeControl "5400+30"]

{[%evp 11,156,10,21,16,22,23,25,13,8,18,24,24,24,28,29,14,26,25,18,23,35,2,37,3,23,53,52,23,34,35,34,14,27,24,49,43,63,70,83,25,89,68,102,105,106,109,201,193,194,186,189,165,208,208,208,208,208,208,206,195,215,212,205,162,205,205,206,162,162,162,161,61,72,0,0,0,0,0,0,0,0,0,0,0,0,0,0,0,0,0,0,0,0,0,0,-14,-2,-15,0,-16,-16,-9,-20,-16,-18,-17,-17,-39,-39,-41,0,0,0,0,0,0,103,103,103,95,114,91,91,91,91,91,91,91,91,91,91,91,91,91,91,91,91,91,91,91,91,91,91,91,91,91,91]} 1. e4 {[%emt 0:08:16]} e5 {[%emt 0:02:04]} 2. Nf3 {[%emt 0:00:20]} Nc6 {[%emt 0:00:09]} 3. Bc4 {[%emt 0:00:22]} Nf6 {[%emt 0:00:06]} 4. d3 {[%emt 0:00:04]} Bc5 {[%emt 0:00:04]} 5. O-O {[%emt 0:00:15]} d6 {[%emt 0:00:14]} 6. c3 {[%emt 0:00:06]} a6 {[%emt 0:00:09] 6...a5 is a critical line.} 7. a4 {[%emt 0:00:04] C54: Giuoco Piano: 4 c3 Nf6, main lines with 5 d4 and 5 d3.} Ba7 {[%emt 0:00:07]} 8. Nbd2 {[%emt 0:00:09]} O-O {[%emt 0:00:08]} 9. h3 {[%emt 0:02:05] White has an edge.} h6 {[%emt 0:00:14]} 10. Re1 {[%emt 0:03:57]} Re8 {[%emt 0:01:25]} (10... Nh5 {keeps more tension.} 11. Nf1 Qf6 12. Be3 Be6) 11. b4 {[%emt 0:06:34]} Ne7 {[%emt 0:01:48]} 12. Qb3 {[%emt 0:13:23]} Rf8 {[%emt 0:00:47][%cal Ob7b5]} 13. d4 {[%emt 0:00:06]} Ng6 {[%emt 0:00:10]} 14. a5 {[%emt 0:06:41] [#]} Nh5 $146 {[%emt 0:00:10]} ({Predecessor:} 14... c6 15. dxe5 dxe5 16. Nf1 Nh5 17. Be3 Nhf4 18. Bxa7 Rxa7 19. Rad1 Qf6 20. N1h2 Ra8 21. Kh1 Be6 22. h4 Rad8 23. Bxe6 Nxe6 24. g3 {½-½ Sekowski,P (2323)-Gnilka,T (2325) RUS Winter-18B email 2017}) 15. Nf1 {[%emt 0:04:21]} Nhf4 {[%emt 0:02:47]} 16. Qd1 {[%emt 0:05:34]} Qf6 {[%emt 0:15:32]} 17. N1h2 {[%emt 0:04:42]} b5 {[%emt 0:09:31]} 18. axb6 {[%emt 0:04:43]} Bxb6 {[%emt 0:01:28]} 19. Bf1 {[%emt 0:01:16]} a5 {[%emt 0:00:39]} 20. b5 {[%emt 0:03:38]} Re8 {[%emt 0:03:08]} 21. Ng4 {[%emt 0:06:10]} Bxg4 {[%emt 0:07:22]} 22. hxg4 {[%emt 0:00:01]} Ne6 {[%emt 0:00:46][%cal Re5d4]} 23. Be3 {[%emt 0:14:09]} Nh4 {[%emt 0:00:20]} 24. Nxh4 {[%emt 0:02:09]} Qxh4 {[%emt 0:00:01] [#]} 25. Bc4 {[%emt 0:02:41]} (25. Ra4 $1 $16) 25... Rad8 {[%emt 0:09:17]} (25... exd4 $11 26. cxd4 a4) 26. Bd5 {[%emt 0:01:24]} Qf6 {[%emt 0:03:19][%cal Re5d4] Black is weak on the light squares} 27. Ra4 {[%emt 0:00:04]} Nf4 {[%emt 0:11:12]} 28. Bc6 {[%emt 0:01:10]} Re6 {[%emt 0:00:01]} (28... Rf8 $16 {is a better defense.}) 29. g3 $18 {[%emt 0:01:35]} Nh3+ {[%emt 0:03:11]} 30. Kg2 {[%emt 0:00:06]} Ng5 {[%emt 0:00:02]} 31. Bc1 {[%emt 0:03:01] Active counter play!} Qe7 {[%emt 0:02:27]} 32. Bd5 {[%emt 0:01:08]} Rg6 {[%emt 0:01:10]} 33. f4 {[%emt 0:01:05]} Nh7 {[%emt 0:02:06]} 34. f5 {[%emt 0:00:31]} Rg5 {[%emt 0:00:01]} 35. Qf3 {[%emt 0:01:58]} Nf6 {[%emt 0:01:44]} 36. Bxg5 {[%emt 0:00:12]} hxg5 {[%emt 0:00:01]} 37. Re2 {[%emt 0:00:46]} Re8 {[%emt 0:00:47]} 38. Bc6 {[%emt 0:00:06]} Rf8 {[%emt 0:00:01]} 39. Kf1 {[%emt 0:00:53]} g6 {[%emt 0:00:11]} 40. Rh2 {[%emt 0:00:58]} Kg7 {[%emt 0:00:01]} 41. Ke2 {[%emt 0:00:24]} (41. Kg2 $18) 41... d5 $1 $14 {[%emt 0:00:46]} 42. exd5 {[%emt 0:01:44]} ({White should try} 42. Bxd5 $16 {And now Kd2 would win.} exd4 43. Kd2) 42... exd4+ $11 {[%emt 0:00:18]} 43. Kd1 {[%emt 0:00:17]} Qe4 {[%emt 0:03:45] Dodges Re2} 44. Qxe4 {[%emt 0:00:05]} Nxe4 {[%emt 0:00:02]} 45. Ra1 {[%emt 0:01:45][%cal Od5d6]} d3 {[%emt 0:04:18]} 46. d6 {[%emt 0:00:06][%mdl 64] [#] Deflection} Nxd6 {[%emt 0:00:01]} 47. Kd2 {[%emt 0:00:08]} Nc4+ {[%emt 0:00:08]} 48. Kxd3 {[%emt 0:00:06]} Ne5+ {[%emt 0:00:01]} 49. Ke4 {[%emt 0:01:29]} Nxg4 {[%emt 0:00:31]} 50. Rd2 {[%emt 0:01:46]} Nf6+ {[%emt 0:00:17]} 51. Ke5 {[%emt 0:00:46]} Ng4+ {[%emt 0:00:08]} 52. Ke4 {[%emt 0:00:02]} Nf6+ {[%emt 0:00:30]} 53. Kf3 {[%emt 0:00:50]} gxf5 {[%emt 0:00:15]} 54. Re1 {[%emt 0:00:01]} Rh8 {[%emt 0:00:55]} 55. Re5 {[%emt 0:00:39]} (55. c4 $5 {[%cal Re1e5]}) 55... Rh1 {[%emt 0:01:22]} 56. Ke2 $1 {[%emt 0:00:22]} (56. Rxf5 $2 {loses.} Rf1+ 57. Ke2 Rxf5 $19) 56... Rh2+ {[%emt 0:03:31]} 57. Kd1 {[%emt 0:00:04]} Ng4 {[%emt 0:00:36] Strongly threatening ...Rxd2+.} 58. Rxh2 {[%emt 0:00:31] Threatens to win with Ree2.} (58. Rxf5 $2 {too greedy.} Ne3+ 59. Kc1 Rxd2 60. Rxg5+ Kf6 61. Kxd2 Kxg5 $19) 58... Nxe5 {[%emt 0:00:05][%mdl 4096] Endgame KRB-KBN} 59. Bb7 {[%emt 0:00:44]} a4 {[%emt 0:00:57]} 60. Ra2 {[%emt 0:00:49]} Nc4 {[%emt 0:00:11]} 61. Ke2 {[%emt 0:00:26]} a3 {[%emt 0:00:35]} 62. Bd5 {[%emt 0:00:51]} Ne3 {[%emt 0:00:05]} 63. Bb3 {[%emt 0:00:21]} g4 {[%emt 0:06:35]} (63... Bc5 $11 {keeps the balance.}) 64. Rxa3 $16 {[%emt 0:00:12] White is better.} f4 {[%emt 0:00:01]} 65. gxf4 {[%emt 0:00:46]} g3 {[%emt 0:00:01]} 66. Ra1 {[%emt 0:00:44]} Nc4 {[%emt 0:02:38]} 67. Bxc4 {[%emt 0:00:42] Kf3 is the strong threat.} g2 {[%emt 0:00:01]} 68. Kf3 {[%emt 0:00:09]} g1=Q {[%emt 0:00:07]} 69. Rxg1+ {[%emt 0:00:02]} Bxg1 {[%emt 0:00:06] KB-KB} 70. Ke4 {[%emt 0:00:02]} Kf6 {[%emt 0:00:26]} 71. f5 {[%emt 0:00:38]} Ke7 {[%emt 0:00:58]} 72. Kd5 {[%emt 0:00:09]} f6 {[%emt 0:00:45]} 73. Kc6 {[%emt 0:00:10]} Kd8 {[%emt 0:00:11]} 74. Be6 {[%emt 0:00:10]} Bf2 {[%emt 0:00:27]} 75. c4 {[%emt 0:00:03][%cal Bc3c4,Bc4c5,Bc5b6][%mdl 32]} Be3 {[%emt 0:00:05]} 76. c5 {[%emt 0:00:03]} Bf2 {[%emt 0:00:09]} 77. b6 {[%emt 0:00:18]} cxb6 {[%emt 0:00:05]} 78. cxb6 {[%emt 0:00:02]} Be3 {[%emt 0:00:10] White really could win this.   Weighted Error Value: White=0.14 (very precise) /Black=0.11 (very precise)} 1/2-1/2

[Event "10th Cherry Blossom Classic 2023"]
[Site "Dulles"]
[Date "2023.05.29"]
[Round "8.2"]
[White "Bora, Safal"]
[Black "Nyzhnyk, Illya"]
[Result "1/2-1/2"]
[ECO "D27"]
[WhiteElo "2462"]
[BlackElo "2644"]
[Annotator "TA"]
[PlyCount "29"]
[EventDate "2023.05.24"]
[EventType "swiss"]
[EventCountry "USA"]
[SourceTitle "playchess.com"]
[Source "ChessBase"]
[SourceQuality "1"]
[TimeControl "5400+30"]

{[%evp 12,29,34,37,31,23,30,33,12,24,35,21,35,31,31,0,0,0,34,-3]} 1. d4 {[%emt 0:00:41]} d5 {[%emt 0:01:06]} 2. c4 {[%emt 0:00:17]} dxc4 {[%emt 0:00:05]} 3. Nf3 {[%emt 0:00:21]} Nf6 {[%emt 0:00:05]} 4. e3 {[%emt 0:00:03]} e6 {[%emt 0:00:04]} 5. Bxc4 {[%emt 0:00:06]} a6 {[%emt 0:00:03]} 6. O-O {[%emt 0:00:25]} c5 {[%emt 0:00:03]} 7. b3 {[%emt 0:02:39]} b6 {[%emt 0:06:21] D27: Queen's Gambit Accepted: Classical main line: 7 e4!? and 7 a4.} 8. Ba3 $1 {[%emt 0:01:06][%mdl 4] now scores much better than the old 8.Bb2.} cxd4 {[%emt 0:04:31]} 9. Bxf8 {[%emt 0:00:46]} ({But not} 9. exd4 Bxa3 10. Nxa3 Bb7 $15) 9... Kxf8 {[%emt 0:00:04]} 10. Nxd4 {[%emt 0:01:52]} Qe7 {[%emt 0:00:57]} 11. Be2 {[%emt 0:04:18]} g6 {[%emt 0:03:33]} 12. Nd2 {[%emt 0:01:58]} Bb7 {[%emt 0:26:25]} 13. Bf3 {[%emt 0:09:15]} (13. Nc4 $5 {[%cal Rc4b6]}) 13... Kg7 {[%emt 0:01:36]} 14. Nc4 {[%emt 0:00:52] [#]} Bxf3 $146 {[%emt 0:06:34]} (14... b5 $5 {[%cal Rb5c4]} 15. Bxb7 Qxb7 $14) ({Predecessor:} 14... b5 15. Na5 Bxf3 16. Qxf3 Nd5 17. a3 {½-½ Gharamian,T (2586)-Edouard,R (2650) FRA-ch 94th Chartres 2019 (9)}) 15. Nxf3 {[%emt 0:09:04] Weighted Error Value: White=0.05 (flawless) /Black=0.05 (flawless)} 1/2-1/2

[Event "10th Cherry Blossom Classic 2023"]
[Site "Dulles"]
[Date "2023.05.29"]
[Round "8.3"]
[White "Kantor, Gergely"]
[Black "Khanin, Semen"]
[Result "1/2-1/2"]
[ECO "D38"]
[WhiteElo "2535"]
[BlackElo "2566"]
[Annotator "TA"]
[PlyCount "49"]
[EventDate "2023.05.24"]
[EventType "swiss"]
[EventCountry "USA"]
[SourceTitle "playchess.com"]
[Source "ChessBase"]
[SourceQuality "1"]
[TimeControl "5400+30"]

{[%evp 12,31,13,4,8,8,4,3,8,20,21,3,17,0,0,0,10,12,19,19,9,6]} 1. d4 {[%emt 0:06:01]} d5 {[%emt 0:00:07]} 2. c4 {[%emt 0:00:42]} e6 {[%emt 0:00:04]} 3. Nf3 {[%emt 0:00:18]} Nf6 {[%emt 0:00:07]} 4. Nc3 {[%emt 0:00:05]} Bb4 {[%emt 0:00:04]} 5. Qa4+ {[%emt 0:02:33]} Nc6 {[%emt 0:00:06]} 6. e3 {[%emt 0:00:03]} O-O {[%emt 0:00:05]} 7. Bd2 {[%emt 0:00:45] The position is equal.} dxc4 {[%emt 0:00:31] D38: Queen's Gambit Declined: Ragozin Defence (4 Nf3 Bb4).} 8. Bxc4 {[%emt 0:00:20]} Bd6 {[%emt 0:00:05]} 9. Qc2 {[%emt 0:01:37]} e5 {[%emt 0:00:06]} 10. dxe5 {[%emt 0:00:56]} Nxe5 {[%emt 0:00:05]} 11. Nxe5 {[%emt 0:01:50]} Bxe5 {[%emt 0:00:05]} 12. f4 {[%emt 0:02:26]} Bxc3 {[%emt 0:00:12]} 13. Bxc3 {[%emt 0:00:09][%cal Bd2c3,Bc3d4,Bd4c5][%mdl 32]} Ng4 {[%emt 0:00:04]} 14. Bd4 {[%emt 0:02:30]} c5 {[%emt 0:00:06]} 15. Bxc5 {[%emt 0:01:22] This pair of bishops is nice.} Re8 {[%emt 0:00:04]} 16. O-O {[%emt 0:03:32] [#] A rather calm draw.   Weighted Error Value: White=0.03 (flawless) /Black=0.02 (flawless)} {Predecessor:} Nxe3 $146 17. Bxe3 Rxe3 18. Qf2 Re8 19. Rad1 Qf6 20. f5 Re5 21. Rd5 Bxf5 22. Rxe5 Qxe5 23. Bxf7+ Kxf7 24. Qxf5+ Qxf5 25. Rxf5+ {½-½ Xiong,J (2685)-So,W (2778) Chess.com Rapid Wk9 Swiss 2022 (6)} 1/2-1/2

[Event "10th Cherry Blossom Classic 2023"]
[Site "Dulles"]
[Date "2023.05.29"]
[Round "8.4"]
[White "Burke, John M"]
[Black "Marjanovic, Annamaria"]
[Result "1-0"]
[ECO "C54"]
[WhiteElo "2583"]
[BlackElo "2273"]
[Annotator "TA"]
[PlyCount "71"]
[EventDate "2023.05.24"]
[EventType "swiss"]
[EventCountry "USA"]
[SourceTitle "playchess.com"]
[Source "ChessBase"]
[SourceQuality "1"]
[TimeControl "5400+30"]

{[%evp 13,71,15,20,11,6,10,13,6,4,-3,29,0,34,24,33,16,31,38,36,45,57,61,84,70,124,75,103,104,132,142,130,72,179,170,207,196,189,216,202,147,146,161,289,287,329,340,332,331,334,323,328,325,340,340,330,314,574,569,564,559]} 1. e4 {[%emt 0:06:00]} e5 {[%emt 0:00:33]} 2. Nf3 {[%emt 0:00:22]} Nc6 {[%emt 0:00:10]} 3. Bc4 {[%emt 0:00:12]} Bc5 {[%emt 0:00:08]} 4. c3 {[%emt 0:00:04]} Nf6 {[%emt 0:00:05]} 5. d3 {[%emt 0:00:02]} d6 {[%emt 0:00:07]} 6. O-O {[%emt 0:00:35]} O-O {[%emt 0:00:08]} 7. h3 {[%emt 0:00:22]} Bb6 {[%emt 0:00:44]} 8. Re1 {[%emt 0:01:38] C54: Giuoco Piano: 4 c3 Nf6, main lines with 5 d4 and 5 d3.} Ne7 {[%emt 0:00:09]} 9. d4 $1 {[%emt 0:03:36][%mdl 4] is currently scoring better than 9.Nbd2.} Ng6 {[%emt 0:00:06]} 10. Nbd2 {[%emt 0:02:21] The position is equal.} c6 {[%emt 0:00:23]} 11. a4 {[%emt 0:00:56][%cal Ba2a4,Ba4a5][%mdl 32]} Re8 {[%emt 0:05:38] [#]} 12. Qb3 $146 {[%emt 0:07:09]} ({Predecessor:} 12. dxe5 Nxe5 13. Nxe5 dxe5 14. Qb3 Qd7 15. Nf3 h6 16. Be3 Bxe3 17. Rxe3 Qc7 18. Rd1 {½-½ Sandu,M (2224)-Bucur,D (1838) ROM-ch (Women) 2016 (1)}) 12... Qe7 {[%emt 0:06:25]} (12... d5 $5 13. exd5 Nxd5 $14) 13. a5 {[%emt 0:02:09]} Bc7 {[%emt 0:00:12]} 14. dxe5 {[%emt 0:06:03]} dxe5 {[%emt 0:04:29]} 15. Nf1 {[%emt 0:00:59][%cal Bd2f1,Bf1g3,Bg3f5,Bf5h6,Bh6g4][%mdl 32]} Rb8 {[%emt 0:07:04]} 16. Ng3 {[%emt 0:07:14]} Be6 {[%emt 0:03:28]} 17. Be3 {[%emt 0:07:23]} Bxc4 {[%emt 0:04:02]} 18. Qxc4 {[%emt 0:00:04]} a6 {[%emt 0:07:56]} (18... Qe6 $14 19. Qxe6 fxe6) 19. Ng5 {[%emt 0:01:17]} ({White should play} 19. Nf5 Qe6 20. Qb4) 19... Nd7 {[%emt 0:03:35]} 20. Red1 $36 {[%emt 0:03:02][%mdl 2048] Nf5 is the strong threat. White has strong initiative.} Ndf8 {[%emt 0:10:23]} 21. Nf5 {[%emt 0:09:04]} Qf6 {[%emt 0:00:09]} 22. Qb4 {[%emt 0:03:59] White has more active pieces.} (22. Nf3 $142) 22... Nf4 {[%emt 0:10:39]} (22... b6 $16 {was worth a try.}) 23. Nf3 $18 {[%emt 0:00:17]} g6 {[%emt 0:07:19] [#]} 24. Nh6+ {[%emt 0:01:13]} Kg7 {[%emt 0:00:13]} 25. Ng4 {[%emt 0:00:04]} Qe6 {[%emt 0:00:42] Black is weak on the dark squares} 26. Rd2 {[%emt 0:09:25][%cal Og4e5]} ({Don't play} 26. Bxf4 $6 exf4 27. e5 Qf5 $16) 26... f6 {[%emt 0:05:55]} 27. Ba7 {[%emt 0:00:44][%mdl 64] Deflection} Rbc8 {[%emt 0:00:40]} (27... Ra8 $142) 28. Qxb7 {[%emt 0:02:10]} Re7 {[%emt 0:00:53][%cal Oc7b8]} 29. Qxa6 {[%emt 0:02:13]} Ra8 {[%emt 0:00:26]} 30. Qb7 {[%emt 0:00:27] Against Bb8} Rae8 {[%emt 0:00:45]} 31. Bc5 {[%emt 0:01:59]} Rf7 {[%emt 0:01:13]} 32. Qb4 {[%emt 0:01:04]} Rb8 {[%emt 0:01:18]} 33. Qa4 {[%emt 0:01:21]} Nd7 {[%emt 0:00:55]} 34. Be3 {[%emt 0:00:25] aiming for Bxf4.} Ra8 $2 {[%emt 0:00:29]} (34... h5) 35. Bxf4 {[%emt 0:01:20][%mdl 64] [#] Deflection} exf4 {[%emt 0:00:08]} 36. Nd4 {[%emt 0:00:09][%csl LRc6,LRe6] Weighted Error Value: White=0.09 (flawless) /Black=0.34} 1-0

[Event "10th Cherry Blossom Classic 2023"]
[Site "Dulles"]
[Date "2023.05.29"]
[Round "8.5"]
[White "Matviishen, Viktor"]
[Black "Tanenbaum, Zachary"]
[Result "1-0"]
[ECO "D20"]
[WhiteElo "2538"]
[BlackElo "2261"]
[Annotator "TA"]
[PlyCount "61"]
[EventDate "2023.05.24"]
[EventType "swiss"]
[EventCountry "USA"]
[SourceTitle "playchess.com"]
[Source "ChessBase"]
[SourceQuality "1"]
[TimeControl "5400+30"]

{[%evp 9,61,37,57,48,29,19,17,39,35,20,29,31,45,25,18,10,116,121,172,158,152,135,210,193,159,154,227,223,312,258,550,554,524,523,1119,1112,1061,1077,1277,1270,1264,1263,1264,1263,29993,29994,29994,29995,29995,29996,29996,29997,29997,29998]} 1. d4 {[%emt 0:00:03]} d5 {[%emt 0:11:30]} 2. c4 {[%emt 0:00:18]} dxc4 {[%emt 0:00:01]} 3. e3 {[%emt 0:00:08]} e5 {[%emt 0:00:03]} 4. Bxc4 {[%emt 0:00:10]} Nc6 {[%emt 0:00:05]} 5. Nf3 {[%emt 0:00:25][%cal Bg1f3,Bf3d2,Bd2e4,Be4g3][%mdl 32]} e4 {[%emt 0:00:01]} 6. Nfd2 {[%emt 0:00:09] D20: Queen's Gambit Accepted: 3 e3 and 3 e4.} (6. Qb3 $5 {[%cal Rc4f7]} Nh6 7. Nfd2 $14) 6... Qg5 {[%emt 0:00:10]} 7. Nxe4 {[%emt 0:00:12] 7.Nxe4 is better than 7.g3.} Qxg2 {[%emt 0:00:04]} 8. Ng3 {[%emt 0:00:06] The position is equal.} Qh3 {[%emt 0:00:26]} 9. Qb3 {[%emt 0:00:08]} (9. Qf3 Nf6 10. Bf1 Qg4 11. Qxg4 Bxg4 $11) 9... Nf6 {[%emt 0:00:46]} (9... Bb4+ 10. Nc3 $16 (10. Bd2 Bxd2+ 11. Nxd2 Nh6 $16)) 10. Bxf7+ {[%emt 0:00:17]} Kd8 {[%emt 0:00:07]} 11. Nc3 $36 {[%emt 0:00:14][%mdl 2048] Black must now prevent Bd2. White fights for an advantage.} Bd6 $1 {[%emt 0:00:47]} 12. Bd2 {[%emt 0:00:08] [#] Hoping for 0-0-0.} Rf8 $146 {[%emt 0:42:30]} (12... Bxg3 $1 $11 {keeps the balance.} 13. fxg3 Bg4) ({Predecessor:} 12... Bxg3 13. fxg3 Bg4 14. Qxb7 Qg2 15. Rf1 Nb4 16. Qxb4 Ne4 17. Bc1 Qxh2 18. Rf4 Qg1+ {0-1 Bachmann,A (2603)-Navarrete Mendez,G (2185) Titled Tuesday intern op 27th Sep Early blitz 2022 (4)}) 13. O-O-O $16 {[%emt 0:07:09]} Na5 {[%emt 0:04:46] [#]} (13... Qd7 $16) 14. Qa4 $1 $18 {[%emt 0:07:17]} Rxf7 {[%emt 0:07:19]} 15. Qxa5 {[%emt 0:00:06]} Bg4 {[%emt 0:02:03] [#] Wards off e4} (15... Qd7 $16 {was necessary.}) 16. Rde1 $1 {[%emt 0:18:23] e4 would be deadly.} Bf3 {[%emt 0:04:15] Against e4} 17. Rhf1 {[%emt 0:00:02]} Bg2 {[%emt 0:07:47] Inhibits e4.} (17... Qe6 $16 18. e4 Qc4) 18. Rg1 {[%emt 0:00:16] aiming for e4.} Bxg3 {[%emt 0:02:21]} 19. hxg3 {[%emt 0:03:23] And now e4 would win.} Kd7 $2 {[%emt 0:03:29]} (19... b6 20. Qa4 Bb7) 20. e4 {[%emt 0:02:03]} Re8 {[%emt 0:03:06]} 21. e5 {[%emt 0:05:13]} Ng4 {[%emt 0:01:54]} 22. e6+ {[%emt 0:06:14][%mdl 64] Decoy} Rxe6 {[%emt 0:00:02]} 23. Rxe6 {[%emt 0:00:04][%mdl 64] Remove Defender} ({Weaker is} 23. Qxa7 Nxf2 24. Kb1 Qf5+ 25. Ka1 Ra6 $15) 23... Kxe6 {[%emt 0:00:05]} 24. Re1+ {[%emt 0:11:59]} Kd7 {[%emt 0:00:05]} 25. Nd5 {[%emt 0:00:34][%csl Gd5][%cal Ra5c7]} (25. Qxa7 Nxf2 26. Re3 Qf5 27. Qa4+ (27. Qa8 Nd3+ 28. Kc2 Rf8 $17) 27... c6 $11) 25... Kd8 {[%emt 0:04:41] [#] Black is weak on the dark squares} 26. Qxa7 $1 {[%emt 0:00:44] White wants to mate with Qb8+.} Bxd5 {[%emt 0:04:31]} (26... Nf6 27. Nxf6) 27. Qb8+ {[%emt 0:00:05] White mates.} Kd7 {[%emt 0:00:01]} 28. Qe8+ {[%emt 0:00:05]} Kd6 {[%emt 0:00:03]} 29. Bf4+ {[%emt 0:00:15][%mdl 64] Deflection} Rxf4 {[%emt 0:00:13]} 30. Qe7+ {[%emt 0:00:03]} ({Stronger than} 30. gxf4 b6 $11) 30... Kc6 {[%emt 0:00:05]} 31. Qc5+ {[%emt 0:00:03][%mdl 64] Deflection. Excellently played by Matviishen!   Weighted Error Value: White=0.02 (flawless) /Black=0.73} 1-0